fUSD/lending_fUSD_20250531
["ID","MTS","AMOUNT","RATE_DAILY","PERIOD"]
[363252626,1748650153234,250.0,0.00019,2]
[363252630,1748650232065,-3126.290895,0.00019899,2]
[363252631,1748650232076,-300.0,0.00019999,2]
[363252632,1748650232086,-1200.0,0.00019999,2]
[363252633,1748650232096,-420.0,0.0002,7]
[363252634,1748650232107,-420.0,0.0002,7]
[363252635,1748650232118,-231.42857143,0.0002,4]
[363252636,1748650232128,-420.0,0.0002,7]
[363252637,1748650232139,-420.0,0.0002,7]
[363252638,1748650232149,-226.8,0.0002,4]
[363252639,1748650232160,-420.0,0.0002,7]
[363252640,1748650232170,-420.0,0.0002,7]
[363252641,1748650232180,-220.19417476,0.0002,4]
[363252642,1748650232191,-420.0,0.0002,7]
[363252643,1748650232200,-420.0,0.0002,7]
[363252644,1748650232211,-213.96226415,0.0002,4]
[363252645,1748650232221,-151.0,0.00020187,2]
[363252646,1748650232231,-382.58,0.00020187,2]
[363252647,1748650232244,-2488.05584232,0.000204,3]
[363252648,1748650232254,-2335.2087643,0.00020693,3]
[363252652,1748650232437,-152.84707801,0.00020693,3]
[363252654,1748650232447,-156.587,0.00020735,2]
[363252655,1748650232457,-300.0,0.00021,2]
[363252656,1748650232467,-178.74,0.00021244,2]
[363252657,1748650232477,-162.380719,0.00021283,2]
[363252658,1748650232760,-2488.05584231,0.00021486,5]
[363252659,1748650232774,-771.88,0.00021516,2]
[363252660,1748650232784,-400.0,0.00021777,2]
[363252661,1748650232793,-168.3888056,0.00021831,2]
[363252662,1748650232808,-1680.0,0.00021881,2]
[363252663,1748650232817,-304.67,0.00022182,2]
[363252664,1748650232828,-2488.05584231,0.00022279,6]
[363252665,1748650232837,-174.61919141,0.00022379,2]
[363252666,1748650232847,-250.0,0.00022591,2]
[363252667,1748650232856,-181.08010149,0.00022927,2]
[363252668,1748650232866,-164.47,0.00022985,2]
[363252669,1748650232876,-250.0,0.00022989,2]
[363252670,1748650232887,-636.13,0.00023,2]
[363252671,1748650232899,-200.0,0.00023,2]
[363252672,1748650232910,-350.0,0.00023,2]
[363252673,1748650232920,-1087.0,0.00023072,2]
[363252674,1748650232931,-2488.05584231,0.00023072,8]
[363252675,1748650232941,-7288.4,0.00023083,2]
[363252676,1748650232951,-250.0,0.00023092,2]
[363252677,1748650232960,-498.64,0.00023092,2]
[363252678,1748650232972,-151.0,0.00023147,2]
[363252679,1748650232982,-250.0,0.00023161,2]
[363252680,1748650232992,-150.99,0.00023161,2]
[363252681,1748650233002,-976.92,0.00023161,2]
[363252682,1748650233012,-9999.99,0.00023161,2]
[363252683,1748650233022,-9999.99,0.00023161,2]
[363252684,1748650233032,-9999.99,0.00023161,2]
[363252685,1748650233042,-151.0,0.00023202,2]
[363252686,1748650233056,-300.05,0.00023244,2]
[363252687,1748650233066,-305.32,0.00023244,2]
[363252688,1748650233075,-303.42,0.00023244,2]
[363252689,1748650233084,-304.13,0.00023244,2]
[363252690,1748650233094,-305.98,0.00023244,2]
[363252691,1748650233104,-302.05,0.00023244,2]
[363252692,1748650233114,-300.88,0.00023244,2]
[363252693,1748650233124,-295.736324,0.00023257,2]
[363252694,1748650233134,-303.49,0.00023339,2]
[363252695,1748650233144,-301.29,0.00023456,2]
[363252696,1748650233153,-303.14,0.00023456,2]
[363252697,1748650233163,-187.78006525,0.00023475,2]
[363252698,1748650233172,-171.37,0.0002358,2]
[363252699,1748650233181,-171.37,0.000236,2]
[363252700,1748650233191,-171.37,0.00023619,2]
[363252701,1748650233201,-171.37,0.00023639,2]
[363252702,1748650233209,-171.37,0.00023659,2]
[363252703,1748650233220,-171.37,0.00023678,2]
[363252704,1748650233230,-171.37,0.00023698,2]
[363252705,1748650233240,-771.88,0.0002378,2]
[363252706,1748650233250,-150.02,0.0002379,2]
[363252707,1748650233259,-305.71,0.00023821,2]
[363252708,1748650233269,-2488.05584231,0.00023866,10]
[363252709,1748650233279,-609.35,0.00023892,2]
[363252710,1748650233289,-2351.0,0.00023941,2]
[363252711,1748650233299,-194.72792766,0.00024023,2]
[363252712,1748650233313,-166.8,0.00024051,2]
[363252713,1748650233323,-4753.79,0.00024154,2]
[363252714,1748650233333,-250.0,0.00024401,2]
[363252715,1748650233342,-267.74,0.00024462,2]
[363252716,1748650233352,-848.0,0.00024509,2]
[363252717,1748650233362,-155.0,0.00024509,2]
[363252718,1748650233371,-882.0,0.00024509,2]
[363252719,1748650233380,-277.92517345,0.00024571,2]
[363252720,1748650233390,-1077.3474818,0.00024641,2]
[363252721,1748650233400,-1123.38041005,0.00024641,2]
[363252722,1748650233409,-281.52596424,0.00024658,2]
[363252723,1748650233419,-166.66,0.00024658,2]
[363252724,1748650233429,-1000.0,0.00024658,2]
[363252725,1748650233438,-2488.05584231,0.00024659,11]
[363252726,1748650233448,-477.39,0.00024884,2]
[363252727,1748650233457,-23900.0,0.00024946,2]
[363252728,1748650233467,-1500.0,0.00024989,120]
[363252729,1748650233476,-500.0,0.00025,30]
[363252730,1748650233487,-500.0,0.00025,30]
[363252731,1748650233497,-500.0,0.00025,30]
[363252732,1748650233507,-500.0,0.00025,30]
[363252733,1748650233517,-500.0,0.00025,30]
[363252734,1748650233527,-500.0,0.00025,30]
[363252735,1748650233537,-500.0,0.00025,30]
[363252736,1748650233547,-800.0,0.00025,30]
[363252737,1748650233559,-400.0,0.00025,2]
[363252738,1748650233571,-200.0,0.00025095,2]
[363252739,1748650233582,-1000.0,0.00025207,2]
[363252740,1748650233592,-500.0,0.00025255,2]
[363252741,1748650233602,-280.0,0.000253,10]
[363252742,1748650233612,-150.0,0.00025315,7]
[363252743,1748650233622,-500.0,0.00025316,2]
[363252744,1748650233632,-500.0,0.00025338,2]
[363252745,1748650233642,-150.0,0.00025343,2]
[363252746,1748650233652,-150.0,0.00025354,2]
[363252747,1748650233662,-1314.0,0.00025354,2]
[363252748,1748650233672,-941.0,0.00025354,2]
[363252749,1748650233682,-634.0,0.00025354,2]
[363252750,1748650233692,-801.0,0.00025354,2]
[363252751,1748650233702,-556.0,0.00025354,2]
[363252752,1748650233712,-1466.0,0.00025354,2]
[363252753,1748650233722,-924.0,0.00025354,2]
[363252754,1748650233733,-1268.0,0.00025354,2]
[363252755,1748650233742,-588.0,0.00025354,2]
[363252756,1748650233753,-1155.0,0.00025354,2]
[363252757,1748650233763,-500.0,0.00025356,2]
[363252758,1748650233773,-495.07781774,0.0002537,2]
[363252759,1748650233783,-172.56,0.00025379,2]
[363252760,1748650233793,-2488.05584231,0.00025452,13]
[363252761,1748650233807,-207.4,0.00025471,2]
[363252762,1748650233817,-156.0,0.00025471,2]
[363252763,1748650233826,-1115.157653,0.00025471,2]
[363252764,1748650233836,-151.0,0.00025471,2]
[363252765,1748650233846,-668.65185757,0.00025471,2]
[363252766,1748650233855,-151.0,0.00025471,2]
[363252767,1748650233865,-300.0,0.00025471,2]
[363252768,1748650233875,-300.0,0.00025471,2]
[363252769,1748650233887,-240.0,0.00025471,2]
[363252770,1748650233898,-500.0,0.00025554,2]
[363252771,1748650233908,-500.0,0.0002557,2]
[363252772,1748650233918,-304.73,0.00025641,2]
[363252773,1748650233929,-3140.53594609,0.0002567,2]
[363252774,1748650233939,-500.0,0.00025676,2]
[363252775,1748650233948,-495.07781767,0.00025677,2]
[363252776,1748650233958,-500.0,0.00025687,2]
[363252777,1748650233969,-66737.44069322,0.0002577,2]
[363252778,1748650234647,-409.049,0.0002577,2]
[363252779,1748650234660,-2132.13,0.0002577,2]
[363252785,1748650238068,-1157.59671269,0.00024509,2]
[363252786,1748650238080,-591.25700027,0.00024509,2]
[363252787,1748650238091,-5180.14628704,0.00024509,2]
[363252788,1748650238101,-4906.75347538,0.0002577,2]
[363252789,1748650238279,-375.11531255,0.0002577,2]
[363252790,1748650238291,-9806.14701885,0.0002577,2]
[363252791,1748650238302,-2500.0,0.0002577,2]
[363252792,1748650238314,-500.0,0.00025829,2]
[363252793,1748650238324,-267.74,0.00025832,2]
[363252794,1748650238333,-8170.39573498,0.0002587,2]
[363252795,1748650238345,-1010.05326502,0.0002587,2]
[363252797,1748650238355,-500.0,0.00025908,2]
[363252798,1748650238364,-495.07781767,0.00025984,2]
[363252800,1748650238374,-786.29967731,0.00026,2]
[363252803,1748650238385,-1213.70032269,0.00026,2]
[363252805,1748650238394,-156.13764048,0.00026019,2]
[363252807,1748650238403,-151.0,0.00026019,2]
[363252808,1748650238413,-771.88,0.00026044,2]
[363252810,1748650238423,-933.51200016,0.00026059,2]
[363252811,1748650238435,-125.47206349,0.00026059,2]
[363252813,1748650238444,-1123.36302533,0.00026059,2]
[363252814,1748650238453,-1047.83464422,0.00026059,2]
[363252815,1748650238463,-1063.0115675,0.00026059,2]
[363252816,1748650238472,-816.65016196,0.00026059,2]
[363253039,1748650240435,-2229.38136016,0.00024509,2]
[363253042,1748650240447,-1838.61863984,0.00024509,2]
[363253045,1748650240456,-309.54344239,0.00026059,2]
[363253048,1748650240466,-366.73791773,0.00026059,2]
[363253057,1748650240531,-766.37415866,0.00026059,2]
[363253059,1748650240540,-275.22584134,0.00026059,2]
[363253061,1748650240551,-726.31864119,0.00026059,2]
[363253063,1748650240561,-1788.9622548,0.00026059,2]
[363253065,1748650240571,-463.54,0.00026083,2]
[363253067,1748650240581,-250.0,0.00026161,2]
[363253070,1748650240590,-500.0,0.00026181,2]
[363253073,1748650240600,-3016.0,0.00026194,2]
[363253076,1748650240610,-500.0,0.0002622,2]
[363253079,1748650240619,-500.0,0.00026225,2]
[363253082,1748650240628,-2488.05584231,0.00026245,14]
[363253084,1748650240637,-495.07781767,0.00026291,2]
[363253087,1748650240647,-500.0,0.0002631,2]
[363253089,1748650240656,-500.0,0.00026348,2]
[363253090,1748650240667,-500.0,0.0002635,2]
[363253093,1748650240676,-300.0,0.00026432,4]
[363253095,1748650240686,-450.0,0.00026458,4]
[363253096,1748650240696,-500.0,0.00026493,2]
[363253098,1748650240705,-500.0,0.00026534,2]
[363253100,1748650240715,-298.13963362,0.00026567,2]
[363253102,1748650240724,-207.0,0.00026582,2]
[363253104,1748650240734,-3140.53594605,0.00026584,2]
[363253106,1748650240744,-495.07781767,0.00026597,2]
[363253109,1748650240755,-2000.0,0.000266,2]
[363253110,1748650240764,-500.0,0.00026666,2]
[363253112,1748650240773,-800.0,0.00026675,10]
[363253114,1748650240783,-800.0,0.00026675,10]
[363253116,1748650240792,-800.0,0.00026675,10]
[363253118,1748650240802,-800.0,0.00026675,10]
[363253121,1748650240813,-800.0,0.00026675,10]
[363253124,1748650240822,-800.0,0.00026675,10]
[363253127,1748650240832,-800.0,0.00026675,10]
[363253129,1748650240842,-320.50639509,0.00026675,10]
[363253131,1748650240851,-382.58,0.00026676,2]
[363253133,1748650240860,-500.0,0.00026684,2]
[363253135,1748650240870,-500.0,0.00026696,2]
[363253137,1748650240879,-400.0,0.0002677,2]
[363253139,1748650240893,-500.0,0.00026781,2]
[363253141,1748650240903,-215.0738,0.0002684,2]
[363253143,1748650240913,-693.3919763,0.0002684,2]
[363253145,1748650240924,-156.587,0.0002684,2]
[363253147,1748650240934,-298.55857757,0.00026866,10]
[363253149,1748650240943,-500.0,0.00026866,10]
[363253151,1748650240953,-500.0,0.00026866,10]
[363253153,1748650240962,-500.0,0.00026866,10]
[363253155,1748650240974,-685.83470206,0.00026866,10]
[363253157,1748650240983,-500.0,0.00026866,10]
[363253159,1748650240992,-500.0,0.00026866,10]
[363253161,1748650241001,-500.0,0.00026866,10]
[363253163,1748650241012,-500.0,0.00026866,10]
[363253165,1748650241021,-500.0,0.00026866,10]
[363253167,1748650241032,-500.0,0.00026866,10]
[363253169,1748650241041,-500.0,0.00026866,10]
[363253170,1748650241050,-500.0,0.00026866,10]
[363253172,1748650241061,-495.07781767,0.00026904,2]
[363253174,1748650241070,-500.0,0.00026912,2]
[363253176,1748650241080,-500.0,0.0002696,2]
[363253178,1748650241090,-172.0,0.00027,7]
[363253181,1748650241101,-450.0,0.00027,2]
[363253182,1748650241111,-500.0,0.00027008,2]
[363253184,1748650241120,-177.81316333,0.00027023,2]
[363253186,1748650241130,-500.0,0.00027031,2]
[363253188,1748650241139,-2488.05584231,0.00027038,16]
[363253190,1748650241149,-500.0,0.00027042,2]
[363253193,1748650241158,-166.8,0.00027057,120]
[363253194,1748650241168,-952.0,0.000271,2]
[363253197,1748650241177,-375.0,0.000271,2]
[363253198,1748650241187,-767.0,0.000271,2]
[363253201,1748650241196,-153.0,0.00027123,2]
[363253203,1748650241207,-153.0,0.00027123,2]
[363253205,1748650241216,-153.0,0.00027123,2]
[363253206,1748650241226,-153.0,0.00027123,2]
[363253209,1748650241235,-153.0,0.00027123,2]
[363253210,1748650241245,-153.0,0.00027123,2]
[363253212,1748650241254,-153.0,0.00027123,2]
[363253214,1748650241263,-153.0,0.00027123,2]
[363253216,1748650241272,-153.0,0.00027123,2]
[363253218,1748650241282,-153.0,0.00027123,2]
[363253220,1748650241291,-153.0,0.00027123,2]
[363253222,1748650241300,-153.0,0.00027123,2]
[363253224,1748650241311,-153.0,0.00027123,2]
[363253226,1748650241320,-153.0,0.00027123,2]
[363253228,1748650241331,-153.0,0.00027123,2]
[363253230,1748650241340,-153.0,0.00027123,2]
[363253232,1748650241348,-153.0,0.00027123,2]
[363253234,1748650241358,-495.07781767,0.00027211,2]
[363253236,1748650241367,-12500.0,0.0002726,3]
[363253238,1748650241377,-12500.0,0.00027269,3]
[363253240,1748650241386,-12500.0,0.00027277,3]
[363253265,1748650241616,-275.17,0.00027284,2]
[363253267,1748650241630,-19124.3604035,0.00027285,3]
[363253269,1748650241643,-12500.0,0.00027286,3]
[363253271,1748650241653,-666.0,0.00027294,2]
[363253273,1748650241663,-666.0,0.00027294,2]
[363253275,1748650241673,-666.0,0.00027294,2]
[363253277,1748650241682,-666.0,0.00027294,2]
[363253279,1748650241692,-666.0,0.00027294,2]
[363253281,1748650241702,-666.0,0.00027294,2]
[363253283,1748650241713,-666.0,0.00027294,2]
[363253285,1748650241724,-666.0,0.00027294,2]
[363253287,1748650241734,-666.0,0.00027294,2]
[363253290,1748650241744,-666.0,0.00027294,2]
[363253291,1748650241753,-666.0,0.00027294,2]
[363253293,1748650241763,-666.0,0.00027294,2]
[363253295,1748650241772,-666.0,0.00027294,2]
[363253297,1748650241782,-666.0,0.00027294,2]
[363253299,1748650241791,-624.84,0.00027294,2]
[363253301,1748650241801,-7918.50373709,0.00027295,3]
[363253303,1748650241810,-12500.0,0.00027295,3]
[363253305,1748650241820,-500.7,0.00027297,2]
[363253307,1748650241830,-9953.16216902,0.00027297,2]
[363253309,1748650241839,-500.0,0.00027389,2]
[363253311,1748650241849,-2198.367,0.0002739,16]
[363253313,1748650241858,-150.094,0.0002739,16]
[363253315,1748650241868,-200.0,0.00027397,60]
[363253317,1748650241879,-198.0,0.00027397,80]
[363253319,1748650241890,-700.0,0.00027397,2]
[363253321,1748650241902,-6307.93,0.00027397,2]
[363253323,1748650241912,-300.0,0.00027397,2]
[363253325,1748650241922,-386.90176451,0.000274,2]
[363253327,1748650241933,-1004.28046684,0.00027444,2]
[363253329,1748650241945,-1021.58835853,0.00027444,2]
[363253331,1748650241955,-1088.09877989,0.00027444,2]
[363253333,1748650241964,-1002.90100167,0.00027444,2]
[363253335,1748650241974,-1139.34838455,0.00027444,2]
[363253337,1748650241984,-500.0,0.00027451,2]
[363253339,1748650241995,-500.0,0.00027492,2]
[363253341,1748650242005,-3140.53594605,0.00027499,2]
[363253343,1748650242014,-840.549,0.00027509,2]
[363253345,1748650242024,-155.0,0.00027509,2]
[363253347,1748650242033,-882.0,0.00027509,2]
[363253349,1748650242043,-6929.0,0.00027509,2]
[363253351,1748650242062,-495.07781767,0.00027518,2]
[363253354,1748650242076,-500.0,0.00027536,2]
[363253355,1748650242086,-708.0,0.00027536,5]
[363253357,1748650242096,-200.0,0.00027639,2]
[363253359,1748650242105,-172.0,0.00027671,14]
[363253361,1748650242115,-572.91294424,0.000277,2]
[363253364,1748650242125,-500.0,0.000277,2]
[363253366,1748650242135,-1602.814018,0.00027742,6]
[363253368,1748650242145,-500.0,0.00027797,2]
[363253370,1748650242155,-806.79,0.00027808,2]
[363253372,1748650242164,-806.79,0.00027808,2]
[363253374,1748650242174,-803.48,0.00027808,2]
[363253376,1748650242183,-495.07781767,0.00027825,2]
[363253378,1748650242193,-391.0,0.0002783,15]
[363253379,1748650242202,-2488.05584231,0.00027831,17]
[363253380,1748650242211,-9953.16216901,0.0002792,2]
[363253382,1748650242222,-500.0,0.00027925,2]
[363253384,1748650242232,-326.08,0.00027945,2]
[363253386,1748650242242,-2320.78,0.00027945,2]
[363253388,1748650242251,-150.0,0.00027945,2]
[363253390,1748650242260,-150.0,0.00027945,2]
[363253392,1748650242270,-150.0,0.00027945,2]
[363253394,1748650242279,-150.0,0.00027945,2]
[363253396,1748650242289,-151.0,0.00028061,7]
[363253398,1748650242299,-151.0,0.00028061,7]
[363253400,1748650242308,-151.0,0.0002809,7]
[363253402,1748650242322,-500.0,0.00028126,2]
[363253404,1748650242331,-495.07781767,0.00028132,2]
[363253406,1748650242341,-500.0,0.00028159,2]
[363253408,1748650242351,-17278.79899447,0.000282,3]
[363253410,1748650242366,-597.72501009,0.000282,3]
[363253416,1748650242413,-4068.0,0.00027509,2]
[363253418,1748650242423,-1247.83639894,0.000282,3]
[363253420,1748650242432,-223.0315306,0.00028209,2]
[363253422,1748650242442,-719.04747942,0.00028209,2]
[363253424,1748650242452,-162.380719,0.00028209,2]
[363253426,1748650242462,-1156.41848616,0.0002821,2]
[363253428,1748650242471,-500.0,0.00028217,2]
[363253430,1748650242480,-207.0,0.00028253,4]
[363253432,1748650242489,-771.88,0.00028308,2]
[363253433,1748650242498,-230.16410284,0.00028326,2]
[363253434,1748650242508,-150.0,0.00028326,2]
[363253435,1748650242517,-500.0,0.00028335,2]
[363253436,1748650242527,-1314.0,0.00028354,2]
[363253437,1748650242537,-941.0,0.00028354,2]
[363253438,1748650242547,-634.0,0.00028354,2]
[363253439,1748650242556,-801.0,0.00028354,2]
[363253440,1748650242570,-556.0,0.00028354,2]
[363253441,1748650242580,-1466.0,0.00028354,2]
[363253442,1748650242590,-924.0,0.00028354,2]
[363253443,1748650242600,-1268.0,0.00028354,2]
[363253444,1748650242610,-588.0,0.00028354,2]
[363253445,1748650242620,-1000.0,0.00028358,2]
[363253446,1748650242629,-150.0,0.00028369,2]
[363253447,1748650242639,-500.0,0.00028382,2]
[363253448,1748650242649,-150.0,0.00028384,2]
[363253449,1748650242658,-150.0,0.00028403,2]
[363253450,1748650242668,-3140.53594605,0.00028413,2]
[363253452,1748650242677,-150.0,0.00028414,2]
[363253454,1748650242687,-495.07781767,0.00028438,2]
[363253456,1748650242696,-500.0,0.00028453,2]
[363253458,1748650242706,-500.0,0.00028469,2]
[363253460,1748650242715,-13865.68151932,0.00028479,3]
[363253787,1748650246394,-1001.24983439,0.00025255,2]
[363253790,1748650246404,-150.0,0.00026083,7]
[363253793,1748650246413,-216.54016561,0.00028479,3]
[363253802,1748650246698,-1967.15896684,0.00028479,3]
[363253861,1748650543820,365.82,0.00013699,2]
[363253863,1748651082915,3250.0,0.00018695,2]
[363253864,1748651082943,2550.0,0.00018695,2]
[363253865,1748651105694,5800.0,0.00018686,2]
[363253866,1748651129553,5800.0,0.00018678,2]
[363253951,1748651151993,5800.0,0.00018669,2]
[363254026,1748651162627,2895.80269346,8e-05,2]
[363254027,1748651166854,962.00679282,8e-05,2]
[363254028,1748651189001,1985.17539028,0.00015,2]
[363254029,1748651239933,252.18659021,0.000101,2]
[363254030,1748651273309,3309.79117565,0.0001,2]
[363254036,1748651312250,359.29142999,0.000149,2]
[363254037,1748651381757,600.0,0.000193,7]
[363254038,1748651383811,1300.0,0.000194,7]
[363254039,1748651386546,-414.81201026,0.000195,7]
[363254040,1748651390124,-153.92442386,0.000195,7]
[363254041,1748651417048,300.0,0.000193,7]
[363254042,1748651419326,600.0,0.000194,7]
[363254087,1748651432752,-304.245799,0.00019402,2]
[363254088,1748651432763,-88.76689099,0.000195,7]
[363254089,1748651432906,-429.05617024,0.000195,7]
[363254090,1748651432918,-813.44050465,0.000195,7]
[363254091,1748651432928,-1000.0,0.000195,7]
[363254092,1748651432937,-2600.0,0.000196,7]
[363254093,1748651432947,-1300.0,0.000196,7]
[363254094,1748651432957,-300.0,0.00019699,2]
[363254095,1748651432967,-1200.0,0.00019699,2]
[363254096,1748651432976,-3173.55949535,0.000197,7]
[363254097,1748651432988,-126.44050465,0.000197,7]
[363254098,1748651432998,-582.10689128,0.000197,2]
[363254108,1748651438507,-10187.82019287,0.000197,2]
[363254109,1748651438524,-1414.48647876,0.000197,2]
[363254110,1748651438539,-696.66494995,0.000197,2]
[363254111,1748651438550,-3751.25608089,0.000197,2]
[363254114,1748651438577,-16580.96540625,0.000197,2]
[363254116,1748651438586,-1600.0,0.000197,7]
[363254118,1748651438595,-600.0,0.000198,7]
[363254120,1748651438604,-300.0,0.000198,7]
[363254122,1748651438614,-149140.50798002,0.000199,2]
[363254124,1748651438623,-1422.50530615,0.000199,2]
[363254126,1748651438633,-600.0,0.000199,7]
[363254128,1748651438643,-231.93634706,0.000199,2]
[363254130,1748651438652,-3504.25620116,0.000199,2]
[363254132,1748651438663,-300.0,0.000199,7]
[363254134,1748651438672,-5461.03777568,0.000199,2]
[363254136,1748651438682,-439.0,0.00019973,2]
[363254138,1748651438691,-14843.0,0.00019973,2]
[363254140,1748651438701,-36199.0,0.00019973,2]
[363254142,1748651438711,-500.0,0.00019973,2]
[363254144,1748651438720,-157.36,0.00019989,2]
[363254146,1748651438729,-157.36,0.0001999,2]
[363254148,1748651438738,-157.36,0.0001999,2]
[363254150,1748651438748,-157.36,0.0001999,2]
[363254152,1748651438758,-157.36,0.0001999,2]
[363254154,1748651438771,-150.6,0.0001999,2]
[363254156,1748651438781,-150.6,0.0001999,2]
[363254158,1748651438791,-150.6,0.0001999,2]
[363254160,1748651438800,-150.6,0.0001999,2]
[363254162,1748651438810,-150.6,0.0001999,2]
[363254163,1748651438827,-150.6,0.0001999,2]
[363254165,1748651438840,-150.6,0.0001999,2]
[363254167,1748651438850,-150.6,0.0001999,2]
[363254169,1748651438860,-985.49082098,0.0001999,2]
[363254170,1748651438869,-985.49082098,0.0001999,2]
[363254172,1748651438879,-985.49082098,0.0001999,2]
[363254174,1748651438890,-666.0,0.00019999,2]
[363254176,1748651438899,-1076.80876036,0.00019999,5]
[363254177,1748651438909,-1076.80876035,0.00019999,5]
[363254179,1748651438918,-219.03414972,0.00019999,2]
[363254181,1748651438928,-205.75041062,0.00019999,2]
[363254183,1748651438949,-637.33985899,0.00019999,2]
[363254185,1748651438967,-201.25014101,0.00019999,2]
[363254187,1748651438976,-231.17954622,0.00019999,2]
[363254189,1748651438986,-340.92246833,0.00019999,2]
[363254191,1748651438995,-500.0,0.00019999,2]
[363254193,1748651439005,-227.38751295,0.00019999,2]
[363254195,1748651439017,-184.24599564,0.00019999,2]
[363254197,1748651439027,-184.17217638,0.00019999,2]
[363254199,1748651439037,-500.0,0.00019999,2]
[363254201,1748651439047,-500.0,0.00019999,2]
[363254203,1748651439057,-500.0,0.00019999,2]
[363254205,1748651439067,-500.0,0.00019999,2]
[363254207,1748651439076,-500.0,0.00019999,2]
[363254209,1748651439086,-500.0,0.00019999,2]
[363254212,1748651439105,-500.0,0.00019999,2]
[363254214,1748651439115,-495.69287178,0.00019999,2]
[363254216,1748651439125,-500.0,0.00019999,2]
[363254218,1748651439135,-517.87546095,0.00019999,2]
[363254220,1748651439145,-424.40481961,0.00019999,2]
[363254222,1748651439156,-500.0,0.00019999,2]
[363254224,1748651439165,-500.0,0.00019999,2]
[363254226,1748651439175,-500.0,0.00019999,2]
[363254228,1748651439185,-500.0,0.00019999,2]
[363254230,1748651439195,-500.0,0.00019999,2]
[363254231,1748651439205,-500.0,0.00019999,2]
[363254234,1748651439215,-500.0,0.00019999,2]
[363254235,1748651439225,-500.0,0.00019999,2]
[363254237,1748651439237,-500.0,0.00019999,2]
[363254239,1748651439246,-500.0,0.00019999,2]
[363254241,1748651439256,-500.0,0.00019999,2]
[363254243,1748651439268,-500.0,0.00019999,2]
[363254245,1748651439282,-500.0,0.00019999,2]
[363254247,1748651439292,-185.0,0.00019999,2]
[363254249,1748651439301,-500.0,0.00019999,2]
[363254251,1748651439311,-500.0,0.00019999,2]
[363254253,1748651439322,-500.0,0.00019999,2]
[363254256,1748651439332,-500.0,0.00019999,2]
[363254257,1748651439342,-500.0,0.00019999,2]
[363254259,1748651439354,-500.0,0.00019999,2]
[363254262,1748651439364,-500.0,0.00019999,2]
[363254264,1748651439374,-500.0,0.00019999,2]
[363254266,1748651439383,-500.0,0.00019999,2]
[363254268,1748651439393,-500.0,0.00019999,2]
[363254270,1748651439403,-500.0,0.00019999,2]
[363254272,1748651439414,-500.0,0.00019999,2]
[363254274,1748651439423,-500.0,0.00019999,2]
[363254276,1748651439433,-500.0,0.00019999,2]
[363254278,1748651439444,-500.0,0.00019999,2]
[363254280,1748651439454,-500.0,0.00019999,2]
[363254282,1748651439464,-500.0,0.00019999,2]
[363254284,1748651439473,-500.0,0.00019999,2]
[363254286,1748651439482,-500.0,0.00019999,2]
[363254288,1748651439492,-500.0,0.00019999,2]
[363254290,1748651439501,-500.0,0.00019999,2]
[363254292,1748651439510,-500.0,0.00019999,2]
[363254294,1748651439523,-500.0,0.00019999,2]